{"text_format":"1","workbook":"xlsx","n_sheets":9,"sheets":["Kalibreringsbevis","Ti18","Ti19","Ti20","Ti21","Ti22","Ti23","Ti24","Ti25"],"not_rendered":{"charts":0,"images":9,"macros":1,"external_links":0,"defined_names":0,"comments":0,"pivot_tables":0},"unopened":[],"bounds":{"document_bytes":16777216,"sheet_cells":100000,"rows_first":2000,"rows_last":500,"rows_between":2000,"halvings":0,"cell_chars":16384,"cell_head_chars":4096},"cells_cut":0,"cells_raw":0,"read":"whole","date_system":"1900"}

{"sheet":"Kalibreringsbevis","index":0,"n_rows":12,"n_cols":6,"rows_kept":12,"cut":false,"hidden":false,"merged":[[3,3,3,4]]}
["EQSDokument 28339 v 1.8"]
["Referansetermometer, CALIBRATION RESULTS"]
["Kalibreringsdato:","2022-12-21"]
["ID ved kalibreringslab:",433715,"MTA Nr:","14499 m/sensor SerieNr 1-214293"]
[]
["Måleområde\nNavn","Sann temperatur","Avlest temperatur","Avvik","Leverandørs spesifikasjoner","Måleusikkerhet (k=2)"]
["Fryser -80 ⁰C",-77.959999999999994,-78.010000000000005,-0.04,0.2,0.04]
["Kjøleskap 0 ⁰C",0,-0.01,{"$f":"C8-B8","v":-0.01},0.06,0.02]
["Romtemperatur 20 ⁰C",20.03,20.05,1.9999999999999574E-2,0.06,0.02]
["Inkubator 37 ⁰C",37.01,37.06,5.0000000000004263E-2,7.0000000000000007E-2,0.02]
["Autoklave 120 ⁰C",119.97,120,3.0000000000001137E-2,0.1,0.02]
["Tørrsterilisator 160 ⁰C",159.97999999999999,160.03,0.04,0.12,0.02]

{"sheet":"Ti18","index":1,"n_rows":29,"n_cols":5,"rows_kept":29,"cut":false,"hidden":false,"merged":[[25,0,25,1]]}
[{"$f":"Kalibreringsbevis!A1","v":"EQSDokument 28339 v 1.8"}]
["Temperaturkontroll av brukstermometeret knyttet til:"]
["Instrument-navn:","BACTEC FX"]
["TEK nr:","ALM 92514"]
[]
["Dato for disse målingene:","2023-10-03"]
["Identitet til brukstermometer:","Ti18"]
["MTA-nr referansetermometer:",{"$f":"Kalibreringsbevis!D4","v":"14499 m/sensor SerieNr 1-214293"}]
["Utført (Sign):","SON"]
[]
[null,"Brukstermometer","Referansetermometer"]
["Måling 1",34.5,34.200000000000003]
["Måling 2",34.700000000000003,34.409999999999997]
["Måling 3",34.9,34.630000000000003]
["Gjennomsnitt",{"$f":"AVERAGE(B12:B14)","v":34.699999999999996},{"$f":"AVERAGE(C12:C14)","v":34.413333333333334}]
[]
["∆ Referanse- og brukstermometer",{"$f":"C15-B15","v":-0.28666666666666174}]
["Korreksjon til referansetermometer i aktuell måleområde",{"$f":"IF(C18=Kalibreringsbevis!A7,Kalibreringsbevis!D7,IF(C18=Kalibreringsbevis!A8,Kalibreringsbevis!D8,IF(C18=Kalibreringsbevis!A9,Kalibreringsbevis!D9,IF(C18=Kalibreringsbevis!A10,Kalibreringsbevis!D10,IF(C18=Kalibreringsbevis!A11,Kalibreringsbevis!D11,IF(C18=Kalibreringsbevis!A12,Kalibreringsbevis!D12,\"\"))))))","v":5.0000000000004263E-2},"Inkubator 37 ⁰C"]
["Korreksjon til brukstermometeret",{"$f":"B17+B18","v":-0.23666666666665748}]
["Måleusikkerhet brukstermometer",0.5]
["Måleusikkerhet referansetermometer",{"$f":"IF(C18=Kalibreringsbevis!A7,Kalibreringsbevis!F7,IF(C18=Kalibreringsbevis!A8,Kalibreringsbevis!F8,IF(C18=Kalibreringsbevis!A9,Kalibreringsbevis!F9,IF(C18=Kalibreringsbevis!A10,Kalibreringsbevis!F10,IF(C18=Kalibreringsbevis!A11,Kalibreringsbevis!F11,IF(C18=Kalibreringsbevis!A12,Kalibreringsbevis!F12,\"\"))))))","v":0.02}]
["Samlet måleusikkerhet",{"$f":"SQRT(B20^2+B21^2)","v":0.5003998401278722}]
[null,null,"Nedre grense","Øvre grense"]
["Ønsket temperatur",35,33.5,36.5]
["Aksjonsgrense",1.5]
["Korrigering pga måleusikkerhet og nøyaktighet",null,"Nedre grense","Øvre grense","Aksjonsgrense"]
["Ønsket temperatur",{"$f":"B24-B19","v":35.236666666666657},{"$f":"B27-E27","v":34.237066506794527},{"$f":"B27+E27","v":36.236266826538788},{"$f":"ABS(B25-B22)","v":0.9996001598721278}]
[null,{"$f":"IF(ABS(B27-B24)<B25*0.2,B24,B27)","v":35},{"$f":"B28-E28","v":33.5},{"$f":"B28+E28","v":36.5},{"$f":"IF(ABS(B27-B24)<B25*0.2,B25,ABS(B25-B22))","v":1.5}]
["Kommentarer:"]

{"sheet":"Ti19","index":2,"n_rows":29,"n_cols":5,"rows_kept":29,"cut":false,"hidden":false,"merged":[[25,0,25,1]]}
[{"$f":"Kalibreringsbevis!A1","v":"EQSDokument 28339 v 1.8"}]
["Temperaturkontroll av brukstermometeret knyttet til:"]
["Instrument-navn:","BACTEC FX"]
["TEK nr:","ALM 92514"]
[]
["Dato for disse målingene:","2023-10-03"]
["Identitet til brukstermometer:","Ti19"]
["MTA-nr referansetermometer:",{"$f":"Kalibreringsbevis!D4","v":"14499 m/sensor SerieNr 1-214293"}]
["Utført (Sign):","SON"]
[]
[null,"Brukstermometer","Referansetermometer"]
["Måling 1",34.6,34.200000000000003]
["Måling 2",34.799999999999997,34.409999999999997]
["Måling 3",35,34.630000000000003]
["Gjennomsnitt",{"$f":"AVERAGE(B12:B14)","v":34.800000000000004},{"$f":"AVERAGE(C12:C14)","v":34.413333333333334}]
[]
["∆ Referanse- og brukstermometer",{"$f":"C15-B15","v":-0.38666666666667027}]
["Korreksjon til referansetermometer i aktuell måleområde",{"$f":"IF(C18=Kalibreringsbevis!A7,Kalibreringsbevis!D7,IF(C18=Kalibreringsbevis!A8,Kalibreringsbevis!D8,IF(C18=Kalibreringsbevis!A9,Kalibreringsbevis!D9,IF(C18=Kalibreringsbevis!A10,Kalibreringsbevis!D10,IF(C18=Kalibreringsbevis!A11,Kalibreringsbevis!D11,IF(C18=Kalibreringsbevis!A12,Kalibreringsbevis!D12,\"\"))))))","v":5.0000000000004263E-2},"Inkubator 37 ⁰C"]
["Korreksjon til brukstermometeret",{"$f":"B17+B18","v":-0.336666666666666}]
["Måleusikkerhet brukstermometer",0.5]
["Måleusikkerhet referansetermometer",{"$f":"IF(C18=Kalibreringsbevis!A7,Kalibreringsbevis!F7,IF(C18=Kalibreringsbevis!A8,Kalibreringsbevis!F8,IF(C18=Kalibreringsbevis!A9,Kalibreringsbevis!F9,IF(C18=Kalibreringsbevis!A10,Kalibreringsbevis!F10,IF(C18=Kalibreringsbevis!A11,Kalibreringsbevis!F11,IF(C18=Kalibreringsbevis!A12,Kalibreringsbevis!F12,\"\"))))))","v":0.02}]
["Samlet måleusikkerhet",{"$f":"SQRT(B20^2+B21^2)","v":0.5003998401278722}]
[null,null,"Nedre grense","Øvre grense"]
["Ønsket temperatur",35,33.5,36.5]
["Aksjonsgrense",1.5]
["Korrigering pga måleusikkerhet og nøyaktighet",null,"Nedre grense","Øvre grense","Aksjonsgrense"]
["Ønsket temperatur",{"$f":"B24-B19","v":35.336666666666666},{"$f":"B27-E27","v":34.337066506794535},{"$f":"B27+E27","v":36.336266826538797},{"$f":"ABS(B25-B22)","v":0.9996001598721278}]
[null,{"$f":"IF(ABS(B27-B24)<B25*0.2,B24,B27)","v":35.336666666666666},{"$f":"B28-E28","v":34.337066506794535},{"$f":"B28+E28","v":36.336266826538797},{"$f":"IF(ABS(B27-B24)<B25*0.2,B25,ABS(B25-B22))","v":0.9996001598721278}]
["Kommentarer:"]

{"sheet":"Ti20","index":3,"n_rows":29,"n_cols":5,"rows_kept":29,"cut":false,"hidden":false,"merged":[[25,0,25,1]]}
[{"$f":"Kalibreringsbevis!A1","v":"EQSDokument 28339 v 1.8"}]
["Temperaturkontroll av brukstermometeret knyttet til:"]
["Instrument-navn:","BACTEC FX"]
["TEK nr:","ALM 92518"]
[]
["Dato for disse målingene:","2023-10-03"]
["Identitet til brukstermometer:","Ti20"]
["MTA-nr referansetermometer:",{"$f":"Kalibreringsbevis!D4","v":"14499 m/sensor SerieNr 1-214293"}]
["Utført (Sign):","SON"]
[]
[null,"Brukstermometer","Referansetermometer"]
["Måling 1",34.5,34.200000000000003]
["Måling 2",34.700000000000003,34.409999999999997]
["Måling 3",35,34.630000000000003]
["Gjennomsnitt",{"$f":"AVERAGE(B12:B14)","v":34.733333333333334},{"$f":"AVERAGE(C12:C14)","v":34.413333333333334}]
[]
["∆ Referanse- og brukstermometer",{"$f":"C15-B15","v":-0.32000000000000028}]
["Korreksjon til referansetermometer i aktuell måleområde",{"$f":"IF(C18=Kalibreringsbevis!A7,Kalibreringsbevis!D7,IF(C18=Kalibreringsbevis!A8,Kalibreringsbevis!D8,IF(C18=Kalibreringsbevis!A9,Kalibreringsbevis!D9,IF(C18=Kalibreringsbevis!A10,Kalibreringsbevis!D10,IF(C18=Kalibreringsbevis!A11,Kalibreringsbevis!D11,IF(C18=Kalibreringsbevis!A12,Kalibreringsbevis!D12,\"\"))))))","v":5.0000000000004263E-2},"Inkubator 37 ⁰C"]
["Korreksjon til brukstermometeret",{"$f":"B17+B18","v":-0.26999999999999602}]
["Måleusikkerhet brukstermometer",0.5]
["Måleusikkerhet referansetermometer",{"$f":"IF(C18=Kalibreringsbevis!A7,Kalibreringsbevis!F7,IF(C18=Kalibreringsbevis!A8,Kalibreringsbevis!F8,IF(C18=Kalibreringsbevis!A9,Kalibreringsbevis!F9,IF(C18=Kalibreringsbevis!A10,Kalibreringsbevis!F10,IF(C18=Kalibreringsbevis!A11,Kalibreringsbevis!F11,IF(C18=Kalibreringsbevis!A12,Kalibreringsbevis!F12,\"\"))))))","v":0.02}]
["Samlet måleusikkerhet",{"$f":"SQRT(B20^2+B21^2)","v":0.5003998401278722}]
[null,null,"Nedre grense","Øvre grense"]
["Ønsket temperatur",35,33.5,36.5]
["Aksjonsgrense",1.5]
["Korrigering pga måleusikkerhet og nøyaktighet",null,"Nedre grense","Øvre grense","Aksjonsgrense"]
["Ønsket temperatur",{"$f":"B24-B19","v":35.269999999999996},{"$f":"B27-E27","v":34.270399840127865},{"$f":"B27+E27","v":36.269600159872127},{"$f":"ABS(B25-B22)","v":0.9996001598721278}]
[null,{"$f":"IF(ABS(B27-B24)<B25*0.2,B24,B27)","v":35},{"$f":"B28-E28","v":33.5},{"$f":"B28+E28","v":36.5},{"$f":"IF(ABS(B27-B24)<B25*0.2,B25,ABS(B25-B22))","v":1.5}]
["Kommentarer:"]

{"sheet":"Ti21","index":4,"n_rows":29,"n_cols":5,"rows_kept":29,"cut":false,"hidden":false,"merged":[[25,0,25,1]]}
[{"$f":"Kalibreringsbevis!A1","v":"EQSDokument 28339 v 1.8"}]
["Temperaturkontroll av brukstermometeret knyttet til:"]
["Instrument-navn:","BACTEC FX"]
["TEK nr:","ALM 92518"]
[]
["Dato for disse målingene:","2023-10-03"]
["Identitet til brukstermometer:","Ti21"]
["MTA-nr referansetermometer:",{"$f":"Kalibreringsbevis!D4","v":"14499 m/sensor SerieNr 1-214293"}]
["Utført (Sign):","SON"]
[]
[null,"Brukstermometer","Referansetermometer"]
["Måling 1",34.5,34.200000000000003]
["Måling 2",34.700000000000003,34.409999999999997]
["Måling 3",35,34.630000000000003]
["Gjennomsnitt",{"$f":"AVERAGE(B12:B14)","v":34.733333333333334},{"$f":"AVERAGE(C12:C14)","v":34.413333333333334}]
[]
["∆ Referanse- og brukstermometer",{"$f":"C15-B15","v":-0.32000000000000028}]
["Korreksjon til referansetermometer i aktuell måleområde",{"$f":"IF(C18=Kalibreringsbevis!A7,Kalibreringsbevis!D7,IF(C18=Kalibreringsbevis!A8,Kalibreringsbevis!D8,IF(C18=Kalibreringsbevis!A9,Kalibreringsbevis!D9,IF(C18=Kalibreringsbevis!A10,Kalibreringsbevis!D10,IF(C18=Kalibreringsbevis!A11,Kalibreringsbevis!D11,IF(C18=Kalibreringsbevis!A12,Kalibreringsbevis!D12,\"\"))))))","v":5.0000000000004263E-2},"Inkubator 37 ⁰C"]
["Korreksjon til brukstermometeret",{"$f":"B17+B18","v":-0.26999999999999602}]
["Måleusikkerhet brukstermometer",0.5]
["Måleusikkerhet referansetermometer",{"$f":"IF(C18=Kalibreringsbevis!A7,Kalibreringsbevis!F7,IF(C18=Kalibreringsbevis!A8,Kalibreringsbevis!F8,IF(C18=Kalibreringsbevis!A9,Kalibreringsbevis!F9,IF(C18=Kalibreringsbevis!A10,Kalibreringsbevis!F10,IF(C18=Kalibreringsbevis!A11,Kalibreringsbevis!F11,IF(C18=Kalibreringsbevis!A12,Kalibreringsbevis!F12,\"\"))))))","v":0.02}]
["Samlet måleusikkerhet",{"$f":"SQRT(B20^2+B21^2)","v":0.5003998401278722}]
[null,null,"Nedre grense","Øvre grense"]
["Ønsket temperatur",35,33.5,36.5]
["Aksjonsgrense",1.5]
["Korrigering pga måleusikkerhet og nøyaktighet",null,"Nedre grense","Øvre grense","Aksjonsgrense"]
["Ønsket temperatur",{"$f":"B24-B19","v":35.269999999999996},{"$f":"B27-E27","v":34.270399840127865},{"$f":"B27+E27","v":36.269600159872127},{"$f":"ABS(B25-B22)","v":0.9996001598721278}]
[null,{"$f":"IF(ABS(B27-B24)<B25*0.2,B24,B27)","v":35},{"$f":"B28-E28","v":33.5},{"$f":"B28+E28","v":36.5},{"$f":"IF(ABS(B27-B24)<B25*0.2,B25,ABS(B25-B22))","v":1.5}]
["Kommentarer:"]

{"sheet":"Ti22","index":5,"n_rows":29,"n_cols":5,"rows_kept":29,"cut":false,"hidden":false,"merged":[[25,0,25,1]]}
[{"$f":"Kalibreringsbevis!A1","v":"EQSDokument 28339 v 1.8"}]
["Temperaturkontroll av brukstermometeret knyttet til:"]
["Instrument-navn:","BACTEC FX"]
["TEK nr:","ALM 92515"]
[]
["Dato for disse målingene:","2023-10-03"]
["Identitet til brukstermometer:","Ti22"]
["MTA-nr referansetermometer:",{"$f":"Kalibreringsbevis!D4","v":"14499 m/sensor SerieNr 1-214293"}]
["Utført (Sign):","SON"]
[]
[null,"Brukstermometer","Referansetermometer"]
["Måling 1",34.6,34.200000000000003]
["Måling 2",34.799999999999997,34.409999999999997]
["Måling 3",35,34.630000000000003]
["Gjennomsnitt",{"$f":"AVERAGE(B12:B14)","v":34.800000000000004},{"$f":"AVERAGE(C12:C14)","v":34.413333333333334}]
[]
["∆ Referanse- og brukstermometer",{"$f":"C15-B15","v":-0.38666666666667027}]
["Korreksjon til referansetermometer i aktuell måleområde",{"$f":"IF(C18=Kalibreringsbevis!A7,Kalibreringsbevis!D7,IF(C18=Kalibreringsbevis!A8,Kalibreringsbevis!D8,IF(C18=Kalibreringsbevis!A9,Kalibreringsbevis!D9,IF(C18=Kalibreringsbevis!A10,Kalibreringsbevis!D10,IF(C18=Kalibreringsbevis!A11,Kalibreringsbevis!D11,IF(C18=Kalibreringsbevis!A12,Kalibreringsbevis!D12,\"\"))))))","v":5.0000000000004263E-2},"Inkubator 37 ⁰C"]
["Korreksjon til brukstermometeret",{"$f":"B17+B18","v":-0.336666666666666}]
["Måleusikkerhet brukstermometer",0.5]
["Måleusikkerhet referansetermometer",{"$f":"IF(C18=Kalibreringsbevis!A7,Kalibreringsbevis!F7,IF(C18=Kalibreringsbevis!A8,Kalibreringsbevis!F8,IF(C18=Kalibreringsbevis!A9,Kalibreringsbevis!F9,IF(C18=Kalibreringsbevis!A10,Kalibreringsbevis!F10,IF(C18=Kalibreringsbevis!A11,Kalibreringsbevis!F11,IF(C18=Kalibreringsbevis!A12,Kalibreringsbevis!F12,\"\"))))))","v":0.02}]
["Samlet måleusikkerhet",{"$f":"SQRT(B20^2+B21^2)","v":0.5003998401278722}]
[null,null,"Nedre grense","Øvre grense"]
["Ønsket temperatur",35,33.5,36.5]
["Aksjonsgrense",1.5]
["Korrigering pga måleusikkerhet og nøyaktighet",null,"Nedre grense","Øvre grense","Aksjonsgrense"]
["Ønsket temperatur",{"$f":"B24-B19","v":35.336666666666666},{"$f":"B27-E27","v":34.337066506794535},{"$f":"B27+E27","v":36.336266826538797},{"$f":"ABS(B25-B22)","v":0.9996001598721278}]
[null,{"$f":"IF(ABS(B27-B24)<B25*0.2,B24,B27)","v":35.336666666666666},{"$f":"B28-E28","v":34.337066506794535},{"$f":"B28+E28","v":36.336266826538797},{"$f":"IF(ABS(B27-B24)<B25*0.2,B25,ABS(B25-B22))","v":0.9996001598721278}]
["Kommentarer:"]

{"sheet":"Ti23","index":6,"n_rows":29,"n_cols":5,"rows_kept":29,"cut":false,"hidden":false,"merged":[[25,0,25,1]]}
[{"$f":"Kalibreringsbevis!A1","v":"EQSDokument 28339 v 1.8"}]
["Temperaturkontroll av brukstermometeret knyttet til:"]
["Instrument-navn:","BACTEC FX"]
["TEK nr:","ALM 92515"]
[]
["Dato for disse målingene:","2023-10-03"]
["Identitet til brukstermometer:","Ti23"]
["MTA-nr referansetermometer:",{"$f":"Kalibreringsbevis!D4","v":"14499 m/sensor SerieNr 1-214293"}]
["Utført (Sign):","SON"]
[]
[null,"Brukstermometer","Referansetermometer"]
["Måling 1",34.6,34.200000000000003]
["Måling 2",34.799999999999997,34.409999999999997]
["Måling 3",35,34.630000000000003]
["Gjennomsnitt",{"$f":"AVERAGE(B12:B14)","v":34.800000000000004},{"$f":"AVERAGE(C12:C14)","v":34.413333333333334}]
[]
["∆ Referanse- og brukstermometer",{"$f":"C15-B15","v":-0.38666666666667027}]
["Korreksjon til referansetermometer i aktuell måleområde",{"$f":"IF(C18=Kalibreringsbevis!A7,Kalibreringsbevis!D7,IF(C18=Kalibreringsbevis!A8,Kalibreringsbevis!D8,IF(C18=Kalibreringsbevis!A9,Kalibreringsbevis!D9,IF(C18=Kalibreringsbevis!A10,Kalibreringsbevis!D10,IF(C18=Kalibreringsbevis!A11,Kalibreringsbevis!D11,IF(C18=Kalibreringsbevis!A12,Kalibreringsbevis!D12,\"\"))))))","v":5.0000000000004263E-2},"Inkubator 37 ⁰C"]
["Korreksjon til brukstermometeret",{"$f":"B17+B18","v":-0.336666666666666}]
["Måleusikkerhet brukstermometer",0.5]
["Måleusikkerhet referansetermometer",{"$f":"IF(C18=Kalibreringsbevis!A7,Kalibreringsbevis!F7,IF(C18=Kalibreringsbevis!A8,Kalibreringsbevis!F8,IF(C18=Kalibreringsbevis!A9,Kalibreringsbevis!F9,IF(C18=Kalibreringsbevis!A10,Kalibreringsbevis!F10,IF(C18=Kalibreringsbevis!A11,Kalibreringsbevis!F11,IF(C18=Kalibreringsbevis!A12,Kalibreringsbevis!F12,\"\"))))))","v":0.02}]
["Samlet måleusikkerhet",{"$f":"SQRT(B20^2+B21^2)","v":0.5003998401278722}]
[null,null,"Nedre grense","Øvre grense"]
["Ønsket temperatur",35,33.5,36.5]
["Aksjonsgrense",1.5]
["Korrigering pga måleusikkerhet og nøyaktighet",null,"Nedre grense","Øvre grense","Aksjonsgrense"]
["Ønsket temperatur",{"$f":"B24-B19","v":35.336666666666666},{"$f":"B27-E27","v":34.337066506794535},{"$f":"B27+E27","v":36.336266826538797},{"$f":"ABS(B25-B22)","v":0.9996001598721278}]
[null,{"$f":"IF(ABS(B27-B24)<B25*0.2,B24,B27)","v":35.336666666666666},{"$f":"B28-E28","v":34.337066506794535},{"$f":"B28+E28","v":36.336266826538797},{"$f":"IF(ABS(B27-B24)<B25*0.2,B25,ABS(B25-B22))","v":0.9996001598721278}]
["Kommentarer:"]

{"sheet":"Ti24","index":7,"n_rows":29,"n_cols":5,"rows_kept":29,"cut":false,"hidden":false,"merged":[[25,0,25,1]]}
[{"$f":"Kalibreringsbevis!A1","v":"EQSDokument 28339 v 1.8"}]
["Temperaturkontroll av brukstermometeret knyttet til:"]
["Instrument-navn:","BACTEC FX"]
["TEK nr:","ALM 92517"]
[]
["Dato for disse målingene:","2023-10-03"]
["Identitet til brukstermometer:","Ti24"]
["MTA-nr referansetermometer:",{"$f":"Kalibreringsbevis!D4","v":"14499 m/sensor SerieNr 1-214293"}]
["Utført (Sign):","SON"]
[]
[null,"Brukstermometer","Referansetermometer"]
["Måling 1",34.6,34.200000000000003]
["Måling 2",34.799999999999997,34.409999999999997]
["Måling 3",35,34.630000000000003]
["Gjennomsnitt",{"$f":"AVERAGE(B12:B14)","v":34.800000000000004},{"$f":"AVERAGE(C12:C14)","v":34.413333333333334}]
[]
["∆ Referanse- og brukstermometer",{"$f":"C15-B15","v":-0.38666666666667027}]
["Korreksjon til referansetermometer i aktuell måleområde",{"$f":"IF(C18=Kalibreringsbevis!A7,Kalibreringsbevis!D7,IF(C18=Kalibreringsbevis!A8,Kalibreringsbevis!D8,IF(C18=Kalibreringsbevis!A9,Kalibreringsbevis!D9,IF(C18=Kalibreringsbevis!A10,Kalibreringsbevis!D10,IF(C18=Kalibreringsbevis!A11,Kalibreringsbevis!D11,IF(C18=Kalibreringsbevis!A12,Kalibreringsbevis!D12,\"\"))))))","v":5.0000000000004263E-2},"Inkubator 37 ⁰C"]
["Korreksjon til brukstermometeret",{"$f":"B17+B18","v":-0.336666666666666}]
["Måleusikkerhet brukstermometer",0.5]
["Måleusikkerhet referansetermometer",{"$f":"IF(C18=Kalibreringsbevis!A7,Kalibreringsbevis!F7,IF(C18=Kalibreringsbevis!A8,Kalibreringsbevis!F8,IF(C18=Kalibreringsbevis!A9,Kalibreringsbevis!F9,IF(C18=Kalibreringsbevis!A10,Kalibreringsbevis!F10,IF(C18=Kalibreringsbevis!A11,Kalibreringsbevis!F11,IF(C18=Kalibreringsbevis!A12,Kalibreringsbevis!F12,\"\"))))))","v":0.02}]
["Samlet måleusikkerhet",{"$f":"SQRT(B20^2+B21^2)","v":0.5003998401278722}]
[null,null,"Nedre grense","Øvre grense"]
["Ønsket temperatur",35,33.5,36.5]
["Aksjonsgrense",1.5]
["Korrigering pga måleusikkerhet og nøyaktighet",null,"Nedre grense","Øvre grense","Aksjonsgrense"]
["Ønsket temperatur",{"$f":"B24-B19","v":35.336666666666666},{"$f":"B27-E27","v":34.337066506794535},{"$f":"B27+E27","v":36.336266826538797},{"$f":"ABS(B25-B22)","v":0.9996001598721278}]
[null,{"$f":"IF(ABS(B27-B24)<B25*0.2,B24,B27)","v":35.336666666666666},{"$f":"B28-E28","v":34.337066506794535},{"$f":"B28+E28","v":36.336266826538797},{"$f":"IF(ABS(B27-B24)<B25*0.2,B25,ABS(B25-B22))","v":0.9996001598721278}]
["Kommentarer:"]

{"sheet":"Ti25","index":8,"n_rows":29,"n_cols":5,"rows_kept":29,"cut":false,"hidden":false,"merged":[[25,0,25,1]]}
[{"$f":"Kalibreringsbevis!A1","v":"EQSDokument 28339 v 1.8"}]
["Temperaturkontroll av brukstermometeret knyttet til:"]
["Instrument-navn:","BACTEC FX"]
["TEK nr:","ALM 92517"]
[]
["Dato for disse målingene:","2023-10-03"]
["Identitet til brukstermometer:","Ti25"]
["MTA-nr referansetermometer:",{"$f":"Kalibreringsbevis!D4","v":"14499 m/sensor SerieNr 1-214293"}]
["Utført (Sign):","SON"]
[]
[null,"Brukstermometer","Referansetermometer"]
["Måling 1",34.6,34.200000000000003]
["Måling 2",34.799999999999997,34.409999999999997]
["Måling 3",35,34.630000000000003]
["Gjennomsnitt",{"$f":"AVERAGE(B12:B14)","v":34.800000000000004},{"$f":"AVERAGE(C12:C14)","v":34.413333333333334}]
[]
["∆ Referanse- og brukstermometer",{"$f":"C15-B15","v":-0.38666666666667027}]
["Korreksjon til referansetermometer i aktuell måleområde",{"$f":"IF(C18=Kalibreringsbevis!A7,Kalibreringsbevis!D7,IF(C18=Kalibreringsbevis!A8,Kalibreringsbevis!D8,IF(C18=Kalibreringsbevis!A9,Kalibreringsbevis!D9,IF(C18=Kalibreringsbevis!A10,Kalibreringsbevis!D10,IF(C18=Kalibreringsbevis!A11,Kalibreringsbevis!D11,IF(C18=Kalibreringsbevis!A12,Kalibreringsbevis!D12,\"\"))))))","v":5.0000000000004263E-2},"Inkubator 37 ⁰C"]
["Korreksjon til brukstermometeret",{"$f":"B17+B18","v":-0.336666666666666}]
["Måleusikkerhet brukstermometer",0.5]
["Måleusikkerhet referansetermometer",{"$f":"IF(C18=Kalibreringsbevis!A7,Kalibreringsbevis!F7,IF(C18=Kalibreringsbevis!A8,Kalibreringsbevis!F8,IF(C18=Kalibreringsbevis!A9,Kalibreringsbevis!F9,IF(C18=Kalibreringsbevis!A10,Kalibreringsbevis!F10,IF(C18=Kalibreringsbevis!A11,Kalibreringsbevis!F11,IF(C18=Kalibreringsbevis!A12,Kalibreringsbevis!F12,\"\"))))))","v":0.02}]
["Samlet måleusikkerhet",{"$f":"SQRT(B20^2+B21^2)","v":0.5003998401278722}]
[null,null,"Nedre grense","Øvre grense"]
["Ønsket temperatur",35,33.5,36.5]
["Aksjonsgrense",1.5]
["Korrigering pga måleusikkerhet og nøyaktighet",null,"Nedre grense","Øvre grense","Aksjonsgrense"]
["Ønsket temperatur",{"$f":"B24-B19","v":35.336666666666666},{"$f":"B27-E27","v":34.337066506794535},{"$f":"B27+E27","v":36.336266826538797},{"$f":"ABS(B25-B22)","v":0.9996001598721278}]
[null,{"$f":"IF(ABS(B27-B24)<B25*0.2,B24,B27)","v":35.336666666666666},{"$f":"B28-E28","v":34.337066506794535},{"$f":"B28+E28","v":36.336266826538797},{"$f":"IF(ABS(B27-B24)<B25*0.2,B25,ABS(B25-B22))","v":0.9996001598721278}]
["Kommentarer:"]